Cogmind - Beta 16 @@@ ROGUE MODE // 2025.11.16 @ 10:26:24 Player: opaguck Result: Self-destructed Performance ------------- Evolutions (0) 0 Regions Visited (3) 600 Robots Destroyed (1) 5 Value Destroyed (7) 7 Prototype IDs (8) 160 Alien Tech Used (0) 0 Bonus (800) 800 TOTAL SCORE: 1572 Bonus ------- Registered with UFD 300 Met Optimus in HQ 500 Cogmind --------- Core Integrity 250/250 Matter 300/300 Energy 250/250 System Corruption 0% Temperature Cool (0) Movement Rolling (140) Ox4 Location -7/Scraptown Parts ------- > --- POWER (1) -------- Ion Engine > --- PROPULSION (2) --- Wheel Wheel > --- UTILITY (2) ------ Huge Storage Unit Sensor Array > --- WEAPON (2) ------- EM Pulse Gun Mining Laser > --- INVENTORY (25) --- Ion Engine Aluminum Leg Aluminum Leg Scrap Suit Small Storage Unit Signal Interpreter Seismic Detector Targeting Computer Assault Rifle Assault Rifle Light Assault Rifle Scrap Shield Fragment (35) Botcube Peak State ------------ > --- POWER ------------ Ion Engine > --- PROPULSION ------- Wheel Wheel > --- UTILITY ---------- Huge Storage Unit Sensor Array > --- WEAPON ----------- EM Pulse Gun Mining Laser > --- INVENTORY -------- Ion Engine Aluminum Leg Aluminum Leg Small Storage Unit Signal Interpreter Seismic Detector Targeting Computer Scrap Shield Assault Rifle Assault Rifle Light Assault Rifle Scrap Shield Fragment Botcube [Rating: 9] Favorites ----------- Power Ion Engine Engine Ion Engine Propulsion Wheel Wheel Wheel Utility Sensor Array Device Sensor Array Storage Huge Storage Unit Weapon EM Pulse Gun Energy Gun EM Pulse Gun Ballistic Gun Assault Rifle Special Weapon Mining Laser Build | -11 -10 -10 -7 ------- Run | Yrd Mat Sub Scr Slots Evolved . | . . . . Power . | . . . . Propulsion . | . . . . Utility . | . . . . Weapon . | . . . . Parts Attached 10 | 7 3 . . Power 1 | 1 . . . Engine 1 | 1 . . . Core . | . . . . Reactor . | . . . . Propulsion 2 | 2 . . . Treads . | . . . . Leg . | . . . . Wheel 2 | 2 . . . Hover . | . . . . Flight . | . . . . Utility 4 | 2 2 . . Device 2 | 1 1 . . Storage 2 | 1 1 . . Processor . | . . . . Hackware . | . . . . Protection . | . . . . Artifact . | . . . . Weapon 3 | 2 1 . . Energy Gun 1 | 1 . . . Energy Cannon . | . . . . Ballistic Gun 1 | 1 . . . Ballistic Cannon . | . . . . Launcher . | . . . . Special Weapon 1 | . 1 . . Impact Weapon . | . . . . Slashing Weapon . | . . . . Piercing Weapon . | . . . . Special Melee Weapon . | . . . . Unidentified Prototypes . | . . . . Parts Lost . | . . . . Power . | . . . . Propulsion . | . . . . Utility . | . . . . Weapon . | . . . . Highest Loss Streak . | . . . . To Critical Strikes . | . . . . Average Backups 9 | 1 8 10 10 Power . | . 1 1 1 Propulsion 1 | . 2 2 2 Utility 4 | . 2 4 4 Weapon 2 | . 2 3 3 Tool/Special . | . . . . Unused Backups 8 | . . . 8 Power 1 | . . . 1 Propulsion 2 | . . . 2 Utility 2 | . . . 2 Weapon 3 | . . . 3 Tool/Special . | . . . . Average Slot Usage (%) 100 | . 100 100 100 Engine 14 | . 14 14 14 Wheel 28 | . 28 28 28 Device 14 | . 14 14 14 Storage 14 | . 14 14 14 Energy Gun 14 | . 14 14 14 Special Weapon 13 | . 13 14 14 Peak Build Rating 9 | 7 8 8 9 Average Rating 7 | 4 7 8 8 On Entrance 5 | . 7 8 8 Avg Prop Armor Cover (%) . | . . . . Naked Turns . | . . . . Heaviest Build 89 | 15 89 89 89 Greatest Support 20 | 20 20 20 20 Greatest Overweight (x) 4 | . 4 4 4 Average Overweight (x) 3 | . 3 4 4 Largest Inventory Capacity 25 | 8 25 25 25 Average Capacity 24 | 7 24 25 25 Most Carried 14 | 4 10 13 14 Average Carried 11 | 1 8 12 13 Final Capacity 25 | 8 25 25 25 Final Carried 14 | 4 10 13 14 Class Distribution -------------------- 100% | Mutant Dominant Class ---------------- Mutant | -10/Materials Mutant | -10/Subcaves Mutant | -7/Scraptown Resources | -11 -10 -10 -7 ----------- Run | Yrd Mat Sub Scr Matter Collected 303 | 224 . 79 . Remotely . | . . . . Salvage Created 6 | 6 . . . Parts 2 | 2 . . . Haulers Intercepted . | . . . . Recyclers Shooed . | . . . . Parts Field Recycled . | . . . . Retrieved Matter . | . . . . Parts Self-Destructed 9 | . . 9 . Prevented . | . . . . Parts Restored . | . . . . Kills | -11 -10 -10 -7 ------- Run | Yrd Mat Sub Scr Combat Hostiles Destroyed . | . . . . Classes Destroyed 1 | 1 . . . Tunneler 1 | 1 . . . Best Kill Streak 1 | 1 . . . Combat Bots Only . | . . . . Max Kills in Single Turn 1 | 1 . . . Gunslinging . | . . . . Exploded . | . . . . Melee . | . . . . Uniques/NPCs Destroyed . | . . . . Combat | -11 -10 -10 -7 -------- Run | Yrd Mat Sub Scr Hostile Shots Fired 1 | . . . 1 Missed . | . . . . Hits 1 | . . . 1 Projectile 1 | . . . 1 Damage Taken 38 | 18 . . 20 Core . | . . . . Absorbed by Shields . | . . . . Core Remaining (%) 100 | 100 . . . Volleys Fired 12 | 1 4 7 . Largest 2 | 2 1 1 . Hottest 100 | 60 100 100 . Shots Fired 13 | 2 4 7 . Gun 2 | 2 . . . Cannon . | . . . . Launcher . | . . . . Special 11 | . 4 7 . Kinetic 1 | 1 . . . Thermal 11 | . 4 7 . Explosive . | . . . . Electromagnetic 1 | 1 . . . Robot Hit Streak 2 | 2 . . . Robot Miss Streak . | . . . . Penetration Max . | . . . . Secondary Targets . | . . . . Shots Hit Robots 2 | 2 . . . Core Hits 1 | 1 . . . Critical Kills . | . . . . Critical Parts Destroyed . | . . . . Critical Strikes . | . . . . Melee Attacks . | . . . . Impact . | . . . . Slashing . | . . . . Piercing . | . . . . Sneak Attacks . | . . . . Combat Hostiles . | . . . . Follow-up Attacks . | . . . . Damage Inflicted 149 | 149 . . . Guns 27 | 27 . . . Cannons . | . . . . Explosions 122 | 122 . . . Melee . | . . . . Ramming . | . . . . Kinetic 12 | 12 . . . Thermal 122 | 122 . . . Explosive . | . . . . Electromagnetic 15 | 15 . . . Impact . | . . . . Slashing . | . . . . Piercing . | . . . . Highest Corruption . | . . . . Average Corruption . | . . . . Corruption Purged . | . . . . Corruption Blocked . | . . . . Overload Shots . | . . . . Overflow Damage . | . . . . Projectiles . | . . . . Explosions . | . . . . Melee . | . . . . Knockbacks . | . . . . Impact . | . . . . Kinetic . | . . . . Secondary . | . . . . Self-Inflicted Damage 19 | 19 . . . Shots 1 | 1 . . . Rammed . | . . . . Targets Rammed . | . . . . Kicked . | . . . . Crushed . | . . . . Highest Temperature 40 | 12 40 . . Average Temperature 16 | 12 17 . . Received Heat Transfer 9 | . . . 9 Siege Activations . | . . . . Martial Activations . | . . . . Shielding Activations . | . . . . Robots Disrupted . | . . . . Combat Hostiles . | . . . . Robots Corrupted . | . . . . Combat Hostiles . | . . . . Parts Fried . | . . . . Impact Corruptions . | . . . . Robots Melted . | . . . . Combat Hostiles . | . . . . Parts Melted . | . . . . Heat Transferred 150 | 150 . . . Parts Sabotaged . | . . . . Parts Stolen . | . . . . Parts Stripped . | . . . . Power Chain Reactions 1 | 1 . . . Alert | -11 -10 -10 -7 ------- Run | Yrd Mat Sub Scr Maximum Alert Level . | . . . . Low Security (%) 100 | 100 100 . . Level 1 . | . . . . Level 2 . | . . . . Level 3 . | . . . . Level 4 . | . . . . Level 5 . | . . . . High Security . | . . . . Max Security . | . . . . Peak Influence 15 | 5 15 . . Initial . | . . . . Average . | . . . . Influence Increases 24 | 5 19 . . Destroy 0b10 Robot/NC 5 | 5 . . . Destroy Structure 4 | . 4 . . Partial Spotted 15 | . 15 . . Influence Decreases 24 | 5 19 . . Time Decay 24 | 5 19 . . Squads Dispatched 1 | . 1 . . Investigation 1 | . 1 . . Extermination . | . . . . Reinforcement . | . . . . Assault . | . . . . Garrison . | . . . . Intercept . | . . . . Searches Triggered . | . . . . Construction Impeded . | . . . . Haulers Reinforced . | . . . . Active Scanning Responses . | . . . . Cargo Convoy Interrupts . | . . . . Stealth | -11 -10 -10 -7 --------- Run | Yrd Mat Sub Scr Distress Signals . | . . . . Communications Jammed . | . . . . Distress Signals . | . . . . Times Spotted 16 | . 2 8 6 Peak Tracking Total 5 | . 1 5 3 Tactical Retreats 1 | . . 1 . Traps | -11 -10 -10 -7 ------- Run | Yrd Mat Sub Scr Traps Triggered 1 | . 1 . . Indirectly . | . . . . Trap Hack Attempts . | . . . . Triggered . | . . . . Disarmed . | . . . . Reprogrammed . | . . . . Reused . | . . . . Traps Extracted . | . . . . Installed . | . . . . Triggered . | . . . . Machines | -11 -10 -10 -7 ---------- Run | Yrd Mat Sub Scr Machines Disabled . | . . . . Max in Single Turn . | . . . . Machines Repaired . | . . . . Machines Dismantled . | . . . . Machines Sabotaged . | . . . . Overloaded Fab Kills . | . . . . Hacking | -11 -10 -10 -7 --------- Run | Yrd Mat Sub Scr Machines Accessed 10 | . 4 . 6 Terminals 3 | . 3 . . Fabricators . | . . . . Repair Stations . | . . . . Recycling Units 1 | . 1 . . Scanalyzers . | . . . . Garrison Access . | . . . . Total Hacks 44 | . 9 . 35 Successful 41 | . 6 . 35 Failed 3 | . 3 . . Catastrophic 1 | . 1 . . Database Lockouts . | . . . . Manual . | . . . . Terminals 6 | . 6 . . Fabricators . | . . . . Repair Stations . | . . . . Recycling Units 3 | . 3 . . Scanalyzers . | . . . . Garrison Access . | . . . . Terminal Hacks 39 | . 4 . 35 Record 29 | . 1 . 28 Robot Analysis 6 | . . . 6 Locate Traps 1 | . 1 . . Maintenance Status 1 | . 1 . . Recall Investigation 1 | . 1 . . Proto ID Catalog 1 | . . . 1 Fabricator Hacks . | . . . . Repair Station Hacks . | . . . . Recycling Unit Hacks 2 | . 2 . . Report Inventory 1 | . 1 . . Retrieve Components 1 | . 1 . . Scanalyzer . | . . . . Garrison Access Hacks . | . . . . Unauthorized Hacks . | . . . . Terminals . | . . . . Fabricators . | . . . . Repair Stations . | . . . . Recycling Units . | . . . . Scanalyzers . | . . . . Garrison Access . | . . . . Data Cores Recovered . | . . . . Used . | . . . . Hacking Detections 2 | . 2 . . Full Trace Events . | . . . . Feedback Events . | . . . . Feedback Blocked . | . . . . Robot Schematics Acquired . | . . . . Robots Built . | . . . . Authchips . | . . . . Time . | . . . . Total Robot Build Rating . | . . . . Part Schematics Acquired . | . . . . Parts Built . | . . . . Authchips . | . . . . Time . | . . . . Total Part Build Rating . | . . . . Part Studies Acquired . | . . . . Parts Repaired . | . . . . Time . | . . . . Parts Recycled . | . . . . Recycled Matter . | . . . . Retrieved Matter . | . . . . Retrieved Components 1 | . 1 . . Parts Scanalyzed . | . . . . Part Schematics Acquired . | . . . . Parts Damaged . | . . . . Bothacking | -11 -10 -10 -7 ------------ Run | Yrd Mat Sub Scr Used RIF Installer . | . . . . Robots Hacked . | . . . . Non-combat . | . . . . Combat . | . . . . Robot Hacks Applied . | . . . . Relay Couplers Released . | . . . . Fabnet Peak Effective % . | . . . . Robots Rewired . | . . . . Allies Hacked . | . . . . Hacks Repelled . | . . . . Allies | -11 -10 -10 -7 -------- Run | Yrd Mat Sub Scr Total Allies . | . . . . Largest Group . | . . . . Highest-Rated Group . | . . . . Highest-Rated Ally . | . . . . Total Orders . | . . . . Ally Attacks . | . . . . Total Damage . | . . . . Kills . | . . . . Allies Corrupted . | . . . . Allies Melted . | . . . . Intel | -11 -10 -10 -7 ------- Run | Yrd Mat Sub Scr Active Infowar (turns) 2011 | 2 564 186 1259 Sensors 1992 | . 547 186 1259 Seismic 19 | 2 17 . . Robot Analysis Total 6 | . . . 6 Derelict Logs Recovered 1 | . . . 1 Drone Launches . | . . . . Drone Recoveries . | . . . . Exploration | -11 -10 -10 -7 ------------- Run | Yrd Mat Sub Scr Turns Passed 2073 | 62 566 186 1259 Spaces Moved 1328 | 58 277 108 885 Core 6 | 6 . . . Treads . | . . . . Legs . | . . . . Wheels 1322 | 52 277 108 885 Hover . | . . . . Flight . | . . . . Fastest Speed 50 | 50 80 140 140 Average Speed 136 | 76 134 140 140 Slowest Speed 140 | 80 140 140 140 Overloaded Moves . | . . . . Propulsion Burnouts . | . . . . Robots Hopped . | . . . . Potential Cave-ins . | . . . . Cave-ins Triggered . | . . . . Exploration Rate (%) 31 | 4 38 14 69 Regions Visited 3 Branch Regions 2 Pre-discovered Areas . | . . . . Known Exits Taken . | . . . . Unknown Exits Taken 3 | 1 1 1 . Scrap Searched 4 | . . . 4 Spaces Dug 4 | . 4 . . Terrain Destroyed 7 | 3 4 . . Melee . | . . . . Projectile 4 | . 4 . . AOE 3 | 3 . . . Terrain Rammed . | . . . . Walls Destroyed . | . . . . Machines Disabled . | . . . . Actions | -11 -10 -10 -7 --------- Run | Yrd Mat Sub Scr Total 1555 | 69 459 122 905 Wait 194 | . 170 6 18 Move 1325 | 57 276 107 885 Hop . | . . . . Pick Up 12 | 4 4 2 2 Fast Attach 9 | 7 2 . . Attach . | . . . . Detach 1 | . 1 . . Swap 1 | . 1 . . Drop 1 | . 1 . . Fire 12 | 1 4 7 . Melee . | . . . . Ram . | . . . . Kick . | . . . . Crush . | . . . . Escape Stasis . | . . . . Rewire . | . . . . Trap . | . . . . Miscellaneous . | . . . . Route ------- -11/Scrapyard -10/Materials -10/Subcaves -7/Scraptown (discovered 1 exit: [*Fac]) History --------- Turn | Location | Event 17 | -11/Scrapyard | Discovered new exit (range 16) 63 | -11/Scrapyard | Entered Materials 300 | -10/Materials | Build established: Mutant 534 | -10/Materials | Discovered new exit (range 3) 629 | -10/Materials | Entered Subcaves 630 | -10/Subcaves | Approached by a straggling Scientist 752 | -10/Subcaves | Ambushed by swarm of Subdwellers 810 | -10/Subcaves | Lost 4 allies 812 | -10/Subcaves | Scientist uncovered a shortcut to Scraptown 815 | -10/Subcaves | Entered Scraptown 1057 | -7/Scraptown | Discovered new exit (range 5) 1102 | -7/Scraptown | Scanned Subdweller tech in exchange for log data 1108 | -7/Scraptown | Learned Factory terminal intel 1207 | -7/Scraptown | Visited Bundlers 1344 | -7/Scraptown | Visited UFD Registry 1344 | -7/Scraptown | Registered with UFD as "Cargogrid" 1396 | -7/Scraptown | Visited Botcube Research 1411 | -7/Scraptown | Found Botcube 1459 | -7/Scraptown | Visited Curators Association 1527 | -7/Scraptown | Visited Junk Repository 1722 | -7/Scraptown | Delivered Scrap Shield to a Scientist 1797 | -7/Scraptown | Visited Science Guys 1848 | -7/Scraptown | Visited Analyses Database 1904 | -7/Scraptown | Met Optimus 1904 | -7/Scraptown | Accepted into 0bPrime 2023 | -7/Scraptown | Visited Scrap Suit Storage 2045 | -7/Scraptown | Found Scrap Suit 2051 | -7/Scraptown | Civil war broke out across Scraptown 2074 | -7/Scraptown | Self-destructed Last Messages --------------- way. Do not resist and we may be able to reach an agreement. 02053_ Optimus: "Bah, right when we're so close. Don't worry Cargogrid, they can't stop us now. Get out of here and do your job, we'll deal with this." 02053_ QY-8GC(h): "We are one!" 02055_ Optimus: "No holds barred, if they're hostile, they are an enemy of the people and we must shoot to kill. Collateral damage is to be expected!" 02066_ I1-SRD(E) suffers critical hit (Burn). 02067_ I1-SRD(E) cannibalizes Ovr. Treads to repair Ovr. Treads. 02068_ Machine disabled. 02070_ I1-SRD(E) heat spikes uncontrollably. 02071_ I1-SRD(E) suffers critical hit (Burn). 02072_ YK-MOU(r) follow-up attacks with Ripteeth. 02072_ Optimus Imp. VSS Leg ripped off. Map ----- +----------------------------------------------------+ | ?????????????????????????????????????????????????? | | ?????????????????????????????????????????????????? | | ?????????????????????????????????????????????????? | | ?????????????????????????????????????????????????? | | ?????????????????????????????????????????????????? | | ?????????????????????????????????????????????????? | | ?????????????????????????????????????????????????? | | ?????????????????????????????????????????????????? | | ?????????????????????????????????????????????????? | | ?????????????????????? ??????????????????????????? | | ?????????????????????# ??????????????????????????? | | ?????????????????????# ?????????????????????????? | | ?????????????????????# ?????????????????????????? | | ?????????????????????# ?????????????????????????? | | ?????????????????????#E??????????????????????????? | | ?????????????????????# ?####????????????????????? | | ?????????????????????#c ? ?????????????????????? | | ??????????????? ?????# E? ?????????????????????? | | ???????????????# ????# ## #?????????????????????? | | ???? ???????#### ##### ##x##????????????????????? | | """" "????"""""" """"" c"" "##########???????????? | | ?? h "## #"""""#???????????? | | = "## !! #???????????? | | ? !%! "## ##"#????????? | | ?? [* "## X" #????????? | | ?? @ #????????? | | """"""?????""""""""""" ! "## #????????? | | """""??????????""""""" [%c "## !!!! !#????????? | | ## ######???????###"" "## #"""""#""#????????? | | ##????????#"" "#############????????? | | X"#????????#"" "## """"#????????????? | | "" "" ##????????#"" 3"## " "#????????????? | | " "" X"#??????###"" ## X"#????????????? | | " ######### #" r"## "#????????????? | | "" %*! j ""#????????????? | | "" ! E ## " "#????????????? | | " ######### #"" "## """"#????????????? | | " "" ""#??????###"" "## """"#????????????? | | "" "" ##????????#"" "#########????????????? | | X"#????????#"" "##############???????? | | ##????????#"" r "##" """""""""#???????? | | ## ################"" "## """"" """#???????? | | """""""""""""""""""""" "## "" """#???????? | | """""""""""""""""""""" " ""#???????? | | "## ""#???????? | | "## "" "#???????? | | "## "" X"#???????? | | ## """ "#???????? | | # "!"""#???????? | | """""" """"""""""" """""" ## "" """"""#???????? | +----------------------------------------------------+ Best States ------------- Heat Dissipation 25 Energy Generation 10 Energy Capacity 250 Matter Stores 300 Matter Capacity 300 Sight Range 16 Robot Scan Range 14 Terrain Scan Density 10 Evasion (%) 44 Item Schematics ----------------- None Robot Schematics ------------------ None Fabricated ------------ Nothing Repaired ---------- Nothing Studied --------- None Alien Tech Used ----------------- None Achievements -------------- Armchair Analyst Civilization 2243 DATA ERROR: Steam Global Achievement% Link The Feds Nice Directions, Buddy Organ Harvest Challenges ------------ None Game ------ Seed CoreCobblerCanceller Manual? 0 Play Time 00:24:17 Cumulative 23.1 hours Start 2025.11.01 @ 13:24:09 End 2025.11.16 @ 10:26:24 Sessions 3 Manual Loads 0 Difficulty Rogue Special Mode None Game No. 42 Rogue 42 Adventurer 0 Explorer 0 Win Type - Total 0 Types 0/0/0/0/0/0/0/0/0/0 Lore% 21 Gallery% 22 Achievement% 12 Wizard Run 0 Options --------- Layout 1 ASCII 0 Keyboard 0 Movement Arrows Keybinds 0 Fullscreen 2 Font 24/Smallcaps Map View 50x35 Zoom Use 0% Tactical HUD 1 Map Filters NONE Filters NONE Steam 1 RUN: 6fe33198-8d96-48fd-9aa9-57d822478dfe